fUSD/lending_fUSD_20241127
["ID","MTS","AMOUNT","RATE_DAILY","PERIOD"]
[343510153,1732701778852,-627.17753502,9.997e-05,2]
[343510154,1732701778872,-894.66600043,9.999e-05,2]
[343510155,1732701778896,-10705.54,9.999e-05,2]
[343510156,1732701778918,-150.99,9.999e-05,2]
[343510157,1732701778939,-10255.2864085,9.999e-05,2]
[343510158,1732701778964,-458.732,9.999e-05,2]
[343510159,1732701778988,-3002.14818477,9.999e-05,2]
[343510160,1732701779008,-200.0,0.0001,2]
[343510161,1732701779030,-229.58,0.0001,2]
[343510162,1732701779050,-18249.5786226,0.0001,2]
[343510179,1732702231874,-1282.5,8.219e-05,2]
[343510180,1732702231888,-300.0,9.1e-05,3]
[343510181,1732702231906,-700.0,9.2e-05,3]
[343510182,1732702231919,-1100.0,9.3e-05,3]
[343510183,1732702231934,-23900.0,9.346e-05,2]
[343510184,1732702231949,-1500.0,9.4e-05,3]
[343510185,1732702231969,-212.64,9.471e-05,2]
[343510186,1732702231984,-1000.0,9.471e-05,2]
[343510187,1732702231998,-1900.0,9.5e-05,3]
[343510188,1732702232013,-300.0,9.6e-05,3]
[343510189,1732702232031,-300.0,9.7e-05,3]
[343510190,1732702232046,-499.99,9.7e-05,2]
[343510191,1732702232060,-250.0,9.761e-05,2]
[343510192,1732702232075,-657.15,9.761e-05,2]
[343510193,1732702232090,-300.0,9.8e-05,3]
[343510194,1732702232105,-2313.0,9.801e-05,2]
[343510195,1732702232120,-150.0,9.899e-05,2]
[343510196,1732702232136,-2500.0,9.9e-05,2]
[343510197,1732702232150,-2025.0782,9.9e-05,2]
[343510198,1732702232165,-1820.43893,9.9e-05,2]
[343510199,1732702232275,-985.11107,9.9e-05,2]
[343510200,1732702232290,-300.0,9.9e-05,3]
[343510202,1732702232305,-500.0,9.973e-05,2]
[343510204,1732702232320,-500.0,9.973e-05,2]
[343510207,1732702232335,-311.4001809,9.995e-05,2]
[343510209,1732702232350,-1048.7396113,9.997e-05,2]
[343510212,1732702232367,-179.8310166,9.997e-05,2]
[343510213,1732702232382,-1271.73102768,9.999e-05,2]
[343510214,1732702232396,-25989.16064936,0.0001,2]
[343510215,1732702232414,-22052.9246757,0.0001,2]
[343510216,1732702232432,-614.72573488,0.0001,2]
[343510843,1732702238638,-47535.95814326,0.0001,2]
[343510845,1732702238647,-7349887.77672804,0.0001,2]
[343510865,1732702238823,-889.68442211,0.0001,2]
[343510868,1732702238840,-1214.56206774,0.0001,2]
[343510870,1732702238851,-5928.75589413,0.0001,2]
[343510881,1732702238943,-1681.04,0.0001,2]
[343511064,1732702240984,-272.85599108,9.999e-05,2]
[343511137,1732702241716,-14.76694239,9.999e-05,2]
[343511255,1732702242924,-4305.36478303,9.79e-05,2]
[343511257,1732702242936,-16748.44787727,9.79e-05,2]
[343511258,1732702242946,-729.76188868,9.999e-05,2]
[343511260,1732702242955,-2076.49275612,0.0001,2]
[343511262,1732702242966,-6529.86142056,0.0001,2]
[343511265,1732702242988,-1294.00290413,0.0001,2]
[343511270,1732702243040,-522.8,0.0001,2]
[343511277,1732702243127,-14424.66812675,0.0001,2]
[343511279,1732702243140,-15284.06966689,0.0001,2]
[343511281,1732702243152,-2293.52979038,0.0001,2]
[343511283,1732702243163,-13101.71668519,0.0001,2]
[343511285,1732702243174,-22678.41721728,0.0001,2]
[343511287,1732702243185,-349.56567779,0.0001,2]
[343511323,1732702245879,-1452.78676,0.0001,2]
[343511324,1732702245916,-72425.0,0.0001,2]
[343511325,1732702245928,-1382.79634238,0.0001,2]
[343511326,1732702245939,-2465.421874,0.0001,2]
[343511327,1732702245970,-1824.22933614,0.0001,2]
[343511336,1732702266513,-150.0,9.9e-05,2]
[343511337,1732702267507,-150.0,9.9e-05,2]
[343511338,1732702268272,-150.0,9.854e-05,2]
[343511339,1732702279008,-150.0,9.9e-05,2]
[343511343,1732702453200,150.0,0.00028,60]
[343511344,1732702454066,150.0,0.00028,60]
[343511345,1732702454466,150.0,0.00028,60]
[343511346,1732702454877,150.0,0.00028,60]
[343511347,1732702455197,150.0,0.00028,60]
[343511348,1732702456498,150.0,0.00028,60]
[343511349,1732702456680,150.0,0.00028,60]
[343511350,1732702456811,150.0,0.00028,60]
[343511351,1732702456935,150.0,0.00028,60]
[343511352,1732702457062,150.0,0.00028,60]
[343511353,1732702457527,150.0,0.00028,60]
[343511354,1732702457923,150.0,0.00028,60]
[343511355,1732702482152,150.0,0.00028,60]
[343511356,1732702482953,150.0,0.00028,60]
[343511357,1732702483417,150.0,0.00028,60]
[343511358,1732702483813,150.0,0.00028,60]
[343511359,1732702484263,150.0,0.00028,60]
[343511360,1732702484780,150.0,0.00028,60]
[343511361,1732702485208,150.0,0.00028,60]
[343511362,1732702485839,150.0,0.00028,60]
[343511363,1732702486114,150.0,0.00028,60]
[343511364,1732702486587,150.0,0.00028,60]
[343511365,1732702487083,150.0,0.00028,60]
[343511366,1732702487609,150.0,0.00028,60]
[343511367,1732702494894,150.0,0.00028,60]
[343511368,1732702495428,150.0,0.00028,60]
[343511369,1732702495926,150.0,0.00028,60]
[343511370,1732702496434,150.0,0.00028,60]
[343511371,1732702496805,150.0,0.00028,60]
[343511372,1732702497305,150.0,0.00028,60]
[343511373,1732702497743,150.0,0.00028,60]
[343511374,1732702498454,150.0,0.00028,60]
[343511375,1732702498651,150.0,0.00028,60]
[343511376,1732702499125,150.0,0.00028,60]
[343511377,1732702500134,150.0,0.00028,60]
[343511378,1732702500689,150.0,0.00028,60]
[343511379,1732702500842,150.0,0.00028,60]
[343511380,1732702501537,150.0,0.00028,60]
[343511381,1732702501949,150.0,0.00028,60]
[343511382,1732702502482,150.0,0.00028,60]
[343511383,1732702502880,150.0,0.00028,60]
[343511384,1732702503452,150.0,0.00028,60]
[343511385,1732702503860,150.0,0.00028,60]
[343511386,1732702507716,150.0,0.00028,60]
[343511390,1732702530389,150.0,0.00028,60]
[343511391,1732702530968,150.0,0.00028,60]
[343511392,1732702531362,150.0,0.00028,60]
[343511393,1732702532638,150.0,0.00028,60]
[343511394,1732702532908,150.0,0.00028,60]
[343511395,1732702533055,150.0,0.00028,60]
[343511396,1732702533525,150.0,0.00028,60]
[343511397,1732702533704,150.0,0.00028,60]
[343511398,1732702534204,150.0,0.00028,60]
[343511399,1732702534714,150.0,0.00028,60]
[343511400,1732702540953,150.0,0.00028,60]
[343511401,1732702541508,150.0,0.00028,60]
[343511402,1732702541791,150.0,0.00028,60]
[343511403,1732702542225,150.0,0.00028,60]
[343511404,1732702543683,150.0,0.00028,60]
[343511405,1732702543798,150.0,0.00028,60]
[343511406,1732702544037,150.0,0.00028,60]
[343511407,1732702544245,150.0,0.00028,60]
[343511408,1732702544587,150.0,0.00028,60]
[343511409,1732702545369,150.0,0.00028,60]
[343511410,1732702554578,150.0,0.00028,60]
[343511411,1732702554804,150.0,0.00028,60]
[343511412,1732702555419,150.0,0.00028,60]
[343511413,1732702555774,150.0,0.00028,60]
[343511414,1732702555977,150.0,0.00028,60]
[343511415,1732702556484,150.0,0.00028,60]
[343511416,1732702556888,150.0,0.00028,60]
[343511417,1732702557312,150.0,0.00028,60]
[343511418,1732702557764,150.0,0.00028,60]
[343511419,1732702558598,150.0,0.00028,60]
[343511420,1732702566256,150.0,0.00028,60]
[343511421,1732702566563,150.0,0.00028,60]
[343511422,1732702566811,150.0,0.00028,60]
[343511423,1732702567333,150.0,0.00028,60]
[343511424,1732702567501,150.0,0.00028,60]
[343511425,1732702567761,150.0,0.00028,60]
[343511426,1732702568087,150.0,0.00028,60]
[343511427,1732702568530,150.0,0.00028,60]
[343511428,1732702569034,150.0,0.00028,60]
[343511429,1732702569610,150.0,0.00028,60]
[343511431,1732702735450,1000.0,0.00028,60]
[343511434,1732702867135,2707.7375254,0.00028,60]
[343511439,1732703126471,3689.74429882,0.00025,120]
[343511446,1732703246877,-1346.82,8.219e-05,2]
[343511447,1732703246900,-250.0,9.453e-05,2]
[343511448,1732703246922,-168.06,9.455e-05,2]
[343511449,1732703246944,-166.83,9.687e-05,2]
[343511450,1732703246968,-185.42,9.689e-05,2]
[343511451,1732703246991,-1000.0,9.698e-05,2]
[343511452,1732703247014,-680.0,9.703e-05,2]
[343511453,1732703247036,-262.87,9.755e-05,2]
[343511460,1732703392500,10000.0,0.00016,7]
[343511461,1732703404342,40000.0,0.00016,7]
[343511491,1732703432120,-336.9229,8.9e-05,2]
[343511493,1732703432130,-6526.87709999,9e-05,2]
[343511496,1732703432142,-219367.45531161,9e-05,2]
[343511498,1732703432151,-250.0,9.471e-05,2]
[343511500,1732703432160,-6146.85,9.52e-05,2]
[343511501,1732703432169,-1000.0,9.524e-05,2]
[343511503,1732703432179,-250.0,9.553e-05,2]
[343511505,1732703432191,-165.82,9.755e-05,2]
[343511507,1732703432200,-7499.7498,9.9e-05,2]
[343511509,1732703432209,-2500.0,9.9e-05,2]
[343511511,1732703432219,-550.0,9.9e-05,2]
[343511513,1732703432228,-504.06351001,9.972e-05,2]
[343511515,1732703432238,-1142.86600555,9.972e-05,2]
[343511517,1732703432247,-1142.86600555,9.972e-05,2]
[343511519,1732703432257,-500.0,9.973e-05,2]
[343511521,1732703432266,-170.51186706,9.973e-05,2]
[343511523,1732703432275,-4323.43964173,9.974e-05,2]
[343511525,1732703432285,-4323.43964173,9.975e-05,2]
[343511527,1732703432294,-1142.86600555,9.975e-05,2]
[343511529,1732703432304,-13103.41431911,9.975e-05,2]
[343511530,1732703432313,-3446.30982027,9.976e-05,2]
[343511531,1732703432322,-4323.43964173,9.977e-05,2]
[343511532,1732703432331,-13103.41431911,9.977e-05,2]
[343511533,1732703432341,-3446.30982027,9.977e-05,2]
[343511534,1732703432350,-13103.41431911,9.978e-05,2]
[343511535,1732703432360,-504.06351001,9.978e-05,2]
[343511536,1732703432369,-200.0,9.979e-05,2]
[343511538,1732703432379,-4323.43964173,9.98e-05,2]
[343511540,1732703432393,-504.06351001,9.981e-05,2]
[343511542,1732703432402,-4323.43964173,9.982e-05,2]
[343511544,1732703432412,-4323.43964173,9.983e-05,2]
[343511546,1732703432422,-504.06351001,9.984e-05,2]
[343511548,1732703432432,-13103.41431911,9.985e-05,2]
[343511550,1732703432441,-3446.30982027,9.988e-05,2]
[343511552,1732703432451,-3446.30982027,9.991e-05,2]
[343511554,1732703432461,-3446.30982027,9.991e-05,2]
[343511556,1732703432471,-504.06351001,9.992e-05,2]
[343511558,1732703432481,-200.0,9.994e-05,2]
[343511560,1732703432490,-1142.86600555,9.995e-05,2]
[343511562,1732703432500,-504.06351001,9.995e-05,2]
[343511563,1732703432509,-13103.41431911,9.996e-05,2]
[343511564,1732703432518,-3446.30982027,9.996e-05,2]
[343511566,1732703432527,-1652.9136092,9.997e-05,2]
[343511567,1732703432536,-2069.5184598,9.997e-05,2]
[343511569,1732703432545,-2444.8604301,9.997e-05,2]
[343511572,1732703432555,-12874.1340642,9.997e-05,2]
[343511574,1732703432563,-2144.4859288,9.997e-05,2]
[343511575,1732703432572,-13103.41431911,9.997e-05,2]
[343511576,1732703432581,-1142.86600555,9.998e-05,2]
[343511577,1732703432590,-366.986,9.999e-05,2]
[343511578,1732703432599,-1071.57166584,9.999e-05,2]
[343511579,1732703432608,-1142.86600555,0.0001,2]
[343511580,1732703432617,-5793.20904752,0.0001,2]
[343511582,1732703432627,-5793.20904744,0.0001,2]
[343511583,1732703432636,-5793.20904744,0.0001,2]
[343511585,1732703432645,-5793.20904744,0.0001,2]
[343511587,1732703432654,-5793.20904744,0.0001,2]
[343511589,1732703432663,-5793.20904744,0.0001,2]
[343511591,1732703432672,-5793.20904744,0.0001,2]
[343511593,1732703432681,-5793.20904744,0.0001,2]
[343511595,1732703432691,-5793.20904744,0.0001,2]
[343511597,1732703432700,-530499.67063335,0.0001,2]
[343511601,1732703432730,-62317.82078563,0.0001,2]
[343511604,1732703432741,-511.08,0.0001,2]
[343511615,1732703432844,-81268.55593506,0.0001,2]
[343511630,1732703432974,-36966.02858035,0.0001,2]
[343511633,1732703432986,-1003.7,0.0001,2]
[343511647,1732703438210,-12462.32394396,0.0001,2]
[343511648,1732703438222,-20677.85892164,0.0001,2]
[343511649,1732703438233,-35823.65629897,0.0001,2]
[343511655,1732703438494,-3353.676596,0.0001,2]
[343511661,1732703438551,-1361.13627925,0.0001,2]
[343511701,1732703438892,-7291.4539,0.0001,2]
[343511706,1732703438937,-1985.51048,0.0001,2]
[343511708,1732703438948,-1393.126496,0.0001,2]
[343511711,1732703438960,-3492.678663,0.0001,2]
[343511713,1732703438971,-1487.71499561,0.0001,2]
[343511715,1732703438982,-899.5830024,0.0001,2]
[343511717,1732703438993,-22782462.81797248,0.0001,2]
[343511719,1732703439002,-213.33234164,0.0001,2]
[343511721,1732703439012,-2605.60224483,0.0001,2]
[343511723,1732703439021,-8011.14046629,0.0001,2]
[343511725,1732703439030,-28000.0,0.0001,2]
[343511727,1732703439040,-1000.0,0.0001,2]
[343511729,1732703439049,-250.0,0.0001,2]
[343511731,1732703439060,-250.0,0.0001,2]
[343511733,1732703439070,-250.0,0.0001,2]
[343511735,1732703439079,-250.0,0.0001,2]
[343511737,1732703439088,-250.0,0.0001,2]
[343511739,1732703439097,-250.0,0.0001,2]
[343511741,1732703439106,-250.0,0.0001,2]
[343511743,1732703439119,-250.0,0.0001,2]
[343511745,1732703439128,-250.0,0.0001,2]
[343511747,1732703439138,-250.0,0.0001,2]
[343511749,1732703439147,-250.0,0.0001,2]
[343511751,1732703439156,-250.0,0.0001,2]
[343511753,1732703439167,-250.0,0.0001,2]
[343511755,1732703439175,-250.0,0.0001,2]
[343511757,1732703439184,-250.0,0.0001,2]
[343511759,1732703439195,-250.0,0.0001,2]
[343511761,1732703439204,-250.0,0.0001,2]
[343511763,1732703439213,-250.0,0.0001,2]
[343511765,1732703439223,-250.0,0.0001,2]
[343511767,1732703439232,-250.0,0.0001,2]
[343511769,1732703439242,-250.0,0.0001,2]
[343511771,1732703439252,-250.0,0.0001,2]
[343511773,1732703439262,-250.0,0.0001,2]
[343511775,1732703439272,-250.0,0.0001,2]
[343511777,1732703439281,-250.0,0.0001,2]
[343511779,1732703439290,-374.1,0.0001,2]
[343511781,1732703439300,-150.0,0.0001,2]
[343511783,1732703439309,-300.0,0.0001,2]
[343511785,1732703439318,-1506.98702523,0.0001,2]
[343511787,1732703439329,-63699.05102975,0.0001,2]
[343511789,1732703439339,-2135.5810524,0.0001,2]
[343511791,1732703439349,-1735.89830985,0.0001,2]
[343511793,1732703439358,-70643111.43476863,0.0001,2]
[343511795,1732703439370,-501.5023028,0.0001,2]
[343511897,1732703440688,-860.32301154,0.0001,2]
[343511931,1732703441000,-2179.59465346,0.0001,2]
[343511952,1732703441197,-3746.2504132,0.0001,2]
[343512148,1732703443030,-857.25733267,9.999e-05,2]
[343512150,1732703443039,-6267671.13804613,0.0001,2]
[343512153,1732703443051,-895618.629235,0.0001,2]
[343512155,1732703443063,-3074.52155057,0.0001,2]
[343512157,1732703443076,-15514.02558359,0.0001,2]
[343512159,1732703443087,-823.1545129,0.0001,2]
[343512170,1732703443159,-8691.47688737,0.0001,2]
[343512172,1732703443170,-7333.00328502,0.0001,2]
[343512174,1732703443181,-10474.22880002,0.0001,2]
[343512177,1732703443200,-9181.34634381,0.0001,2]
[343512179,1732703443211,-82056.857801,0.0001,2]
[343512181,1732703443222,-39428.139,0.0001,2]
[343512476,1732703446054,-14851.9697593,0.0001,2]
[343512480,1732703446082,-356.55198365,0.0001,2]
[343512484,1732703446111,-1202.5473778,0.0001,2]
[343512487,1732703446122,-396.3380102,0.0001,2]
[343512496,1732703446235,-93731.441744,0.0001,2]
[343513640,1732703458140,-201.51,0.00016658,30]
[343513642,1732703500091,2505.42,0.00028,60]
[343513643,1732703606412,38447.37,9.49e-05,6]
[343513644,1732703616085,7886.09,9.49e-05,6]
[343513645,1732703616109,74508.52,9.49e-05,6]
[343513646,1732703630184,370.292,0.0002772,60]
[343513647,1732703638503,2393.59,9.49e-05,6]
[343513648,1732703660661,8327.96,9.489e-05,6]
[343513649,1732703752101,191.43,0.00016658,30]
[343513650,1732703767695,153.0,0.00028,60]
[343513652,1732703770585,21457.08508672,0.00016,7]
[343513654,1732703796507,-1279.47,8.219e-05,2]
[343513655,1732703796529,-15462.7098,8.8e-05,2]
[343513656,1732703796551,-300.0,8.899e-05,2]
[343513657,1732703796574,-67451.5966,8.9e-05,2]
[343513658,1732703796596,-420.0,9.789e-05,2]
[343513659,1732703796618,-2900.56780808,9.79e-05,2]
[343513660,1732703796639,-150.0,9.854e-05,2]
[343513661,1732703796660,-2500.0,9.9e-05,2]
[343513662,1732703796682,-2304.4912,9.9e-05,2]
[343513663,1732703796703,-2000.0,9.9e-05,2]
[343513664,1732703796725,-200.0,9.97e-05,2]
[343513665,1732703796746,-500.0,9.973e-05,2]
[343513666,1732703796768,-413.68453751,9.973e-05,2]
[343513667,1732703796788,-2079.11357776,9.973e-05,2]
[343513668,1732703796810,-2482.10722501,9.978e-05,2]
[343513669,1732703796831,-2482.10722501,9.979e-05,2]
[343513670,1732703796852,-413.68453751,9.981e-05,2]
[343513671,1732703796872,-413.68453751,9.981e-05,2]
[343513672,1732703796893,-200.0,9.982e-05,2]
[343513673,1732703796914,-2079.11357776,9.982e-05,2]
[343513674,1732703796935,-2482.10722501,9.983e-05,2]
[343513675,1732703796955,-413.68453751,9.984e-05,2]
[343513676,1732703796977,-200.0,9.986e-05,2]
[343513677,1732703796998,-200.0,9.986e-05,2]
[343513678,1732703797020,-2079.11357776,9.991e-05,2]
[343513679,1732703797042,-413.68453751,9.991e-05,2]
[343513680,1732703797065,-2079.11357776,9.992e-05,2]
[343513681,1732703797086,-2482.10722501,9.992e-05,2]
[343513682,1732703797107,-2079.11357776,9.992e-05,2]
[343513683,1732703797129,-2079.11357776,9.994e-05,2]
[343513684,1732703797151,-2482.10722501,9.996e-05,2]
[343513685,1732703797173,-413.68453751,9.997e-05,2]
[343513686,1732703797194,-200.0,9.998e-05,2]
[343513687,1732703797215,-685.80586614,9.999e-05,2]
[343513688,1732703797236,-1036.4096137,9.999e-05,3]
[343513689,1732703797259,-1036.4096137,9.999e-05,3]
[343513690,1732703797281,-1036.4096137,9.999e-05,3]
[343513691,1732703797302,-1036.40961369,9.999e-05,3]
[343513692,1732703797330,-473947.39545432,0.0001,2]
[343513694,1732703989613,10916.70357039,0.00028,60]
[343513695,1732704149671,150.112717,0.00028,60]
[343513696,1732704150846,150.112717,0.00028,60]
[343513697,1732704151099,150.112717,0.00028,60]
[343513698,1732704151470,150.112717,0.00028,60]
[343513699,1732704151809,150.112717,0.00028,60]
[343513700,1732704153656,150.112717,0.00028,60]
[343513701,1732704153759,150.112717,0.00028,60]
[343513702,1732704153888,150.112717,0.00028,60]
[343513703,1732704154253,150.112717,0.00028,60]
[343513704,1732704154693,150.112717,0.00028,60]
[343513705,1732704155001,150.112717,0.00028,60]
[343513706,1732704155402,150.112717,0.00028,60]
[343513707,1732704155785,150.112717,0.00028,60]
[343513708,1732704156096,150.112717,0.00028,60]
[343513709,1732704156165,150.112717,0.00028,60]
[343513711,1732704194307,150.112717,0.00028,60]
[343513712,1732704194797,150.112717,0.00028,60]
[343513713,1732704195204,150.112717,0.00028,60]
[343513714,1732704195625,150.112717,0.00028,60]
[343513715,1732704197431,150.112717,0.00028,60]
[343513716,1732704238020,156.112717,0.00028,60]
[343513717,1732704246062,200.0,0.00028,60]
[343513718,1732704278233,155.112717,0.00028,60]
[343513719,1732704308553,155.112717,0.00028,60]
[343513720,1732704335584,155.112717,0.00028,60]
[343513741,1732704551262,189.42,0.00016658,30]
[343513742,1732704562084,-1372.71,8.219e-05,2]
[343513743,1732704562104,-2118.940428,8.7e-05,2]
[343513754,1732704632199,-7972.149772,8.7e-05,2]
[343513755,1732704632209,-300.0,8.884e-05,2]
[343513757,1732704632219,-153.6,8.885e-05,2]
[343513758,1732704632230,-2508.7266465,8.885e-05,2]
[343513759,1732704632240,-204.65,8.986e-05,2]
[343513760,1732704632250,-23900.0,9.103e-05,2]
[343513761,1732704632262,-250.0,9.135e-05,2]
[343513762,1732704632271,-476.66,9.149e-05,2]
[343513763,1732704632280,-1728.43,9.153e-05,2]
[343513764,1732704632289,-250.0,9.153e-05,2]
[343513765,1732704632298,-2930.69,9.161e-05,2]
[343513766,1732704632307,-168.37,9.161e-05,2]
[343513767,1732704632316,-301.74,9.178e-05,2]
[343513768,1732704632326,-250.0,9.178e-05,2]
[343513769,1732704632335,-2883.65,9.288e-05,2]
[343513770,1732704632345,-150.0,9.37e-05,2]
[343513771,1732704632354,-150.0,9.37e-05,2]
[343513772,1732704632363,-150.0,9.37e-05,2]
[343513773,1732704632372,-363.48,9.37e-05,2]
[343513774,1732704632381,-434.46,9.37e-05,2]
[343513775,1732704632391,-150.0,9.37e-05,2]
[343513776,1732704632402,-363.48,9.37e-05,2]
[343513777,1732704632411,-434.46,9.37e-05,2]
[343513778,1732704632421,-150.0,9.37e-05,2]
[343513779,1732704632430,-150.0,9.37e-05,2]
[343513780,1732704632440,-150.0,9.37e-05,2]
[343513781,1732704632450,-150.0,9.37e-05,2]
[343513782,1732704632459,-570.4,9.37e-05,2]
[343513783,1732704632468,-434.46,9.37e-05,2]
[343513784,1732704632477,-150.0,9.37e-05,2]
[343513785,1732704632486,-434.46,9.37e-05,2]
[343513786,1732704632495,-150.0,9.37e-05,2]
[343513787,1732704632504,-434.46,9.37e-05,2]
[343513788,1732704632513,-150.0,9.37e-05,2]
[343513789,1732704632522,-152.6,9.37e-05,2]
[343513790,1732704632531,-150.0,9.37e-05,2]
[343513791,1732704632541,-1000.0,9.379e-05,2]
[343513792,1732704632550,-184.28,9.409e-05,2]
[343513793,1732704632559,-150.0,9.478e-05,2]
[343513794,1732704632568,-150.0,9.478e-05,2]
[343513795,1732704632579,-150.0,9.478e-05,2]
[343513796,1732704632588,-434.46,9.478e-05,2]
[343513798,1732704632597,-200.0,9.509e-05,2]
[343513800,1732704632607,-765.65,9.541e-05,2]
[343513802,1732704632616,-434.46,9.678e-05,2]
[343513804,1732704632626,-150.0,9.678e-05,2]
[343513806,1732704632635,-150.0,9.678e-05,2]
[343513808,1732704632644,-150.0,9.678e-05,2]
[343513810,1732704632654,-329.1,9.678e-05,2]
[343513812,1732704632663,-363.48,9.678e-05,2]
[343513814,1732704632672,-363.48,9.678e-05,2]
[343513816,1732704632681,-150.0,9.678e-05,2]
[343513818,1732704632690,-150.0,9.678e-05,2]
[343513820,1732704632700,-434.46,9.678e-05,2]
[343513822,1732704632709,-217.6064,9.7e-05,2]
[343513823,1732704632717,-1263.4135,9.7e-05,2]
[343513825,1732704632727,-310.0001,9.7e-05,2]
[343513827,1732704632736,-2500.0,9.7e-05,2]
[343513829,1732704632745,-420.0,9.772e-05,2]
[343513831,1732704632758,-15514.47405217,9.79e-05,2]
[343513834,1732704632767,-206028.20952932,9.8e-05,2]
[343513841,1732704632831,-500.75168703,9.8e-05,2]
[343513844,1732704632842,-1627.16224393,9.8e-05,2]
[343513880,1732704633188,-39975.61263972,9.8e-05,2]
[343513882,1732704633197,-49924.6681,9.8e-05,2]
[343513884,1732704633207,-150.0,9.854e-05,2]
[343513886,1732704633217,-1000.0,9.9e-05,2]
[343513888,1732704633228,-16227.21426379,9.9e-05,2]
[343513893,1732704633261,-834.675,9.9e-05,2]
[343513895,1732704633273,-856.32,9.9e-05,2]
[343513897,1732704633284,-822.76,9.9e-05,2]
[343513899,1732704633296,-833.685825,9.9e-05,2]
[343513902,1732704633307,-850.34,9.9e-05,2]
[343513904,1732704633318,-826.215,9.9e-05,2]
[343513906,1732704633331,-4334.68626098,9.9e-05,2]
[343513909,1732704633348,-2861.8132805,9.9e-05,2]
[343513976,1732704638291,-6752.0417,9.7e-05,2]
[343513977,1732704638301,-9544.10166973,9.9e-05,2]
[343513978,1732704638310,-1100.2473,9.9e-05,2]
[343513979,1732704638319,-17485.5779,9.9e-05,2]
[343513980,1732704638328,-2500.0,9.9e-05,2]
[343513981,1732704638343,-1071.6401,9.9e-05,2]
[343513982,1732704638352,-87812.7435,9.9e-05,2]
[343513983,1732704638361,-3046.3818,9.9e-05,2]
[343513984,1732704638371,-686.3812,9.9e-05,2]
[343513985,1732704638381,-261.95673854,9.9e-05,2]
[343513986,1732704638391,-500.90139761,9.973e-05,2]
[343513987,1732704638400,-500.0,9.973e-05,2]
[343513988,1732704638409,-164.6896432,9.99e-05,2]
[343513989,1732704638419,-164.68964315,9.99e-05,2]
[343513990,1732704638428,-164.68964315,9.99e-05,2]
[343513991,1732704638437,-164.68964315,9.99e-05,2]
[343513992,1732704638447,-164.68964315,9.99e-05,2]
[343513993,1732704638456,-164.68964315,9.99e-05,2]
[343513994,1732704638466,-534.288,9.997e-05,2]
[343513995,1732704638475,-548.64469291,9.999e-05,2]
[343513996,1732704638485,-602.84476141,0.0001,2]
[343513997,1732704638495,-602.84476132,0.0001,2]
[343513998,1732704638504,-602.84476132,0.0001,2]
[343513999,1732704638513,-602.84476132,0.0001,2]
[343514000,1732704638523,-602.84476132,0.0001,2]
[343514001,1732704638533,-602.84476132,0.0001,2]
[343514002,1732704638544,-602.84476132,0.0001,2]
[343514003,1732704638556,-602.84476132,0.0001,2]
[343514004,1732704638566,-602.84476132,0.0001,2]
[343514005,1732704638575,-49614.75504238,0.0001,2]
[343514006,1732704638590,-26571.87224917,0.0001,2]
[343514011,1732704638671,-981.3,0.0001,2]
[343514013,1732704638682,-482.00434,0.0001,2]
[343514016,1732704638693,-2851.44196094,0.0001,2]
[343514019,1732704638721,-3550.15749596,0.0001,2]
[343514198,1732704640280,-1013.268,9.7e-05,2]
[343514204,1732704640327,-5019.68047745,9.7e-05,2]
[343514209,1732704640373,-1360.4335,9.7e-05,2]
[343514216,1732704640424,-453.855,9.7e-05,2]